bitfinex/quotes_SOLUSD_20250415
["timestamp","ask_amount","ask_price","bid_price","bid_amount"]
[1744696989945,10.04217255,131.16,131.11,7.76916157]
[1744696990358,10.01217255,131.12,131.06,83.14216157]
[1744696990543,10.01217255,131.09,131.05,0.20516157]
[1744696990747,10.01217255,131.08,131.05,0.063]
[1744696991353,10.01217255,131.1,131.05,17.70577255]
[1744696991543,10.01217255,131.1,131.06,10.01217255]
[1744696992563,10.01217255,131.1,131.06,17.64217255]
[1744696992957,24.20597255,131.12,131.07,10.01217255]
[1744696994446,24.20597255,131.12,131.07,17.64147255]
[1744696994956,10.01217255,131.1,131.05,83.20516157]
[1744696995138,10.01217255,131.1,131.05,93.21733412]
[1744696995343,10.01217255,131.1,131.05,100.84773412]
[1744696995668,14.1938,131.12,131.07,10.01217255]
[1744696995838,10.01217255,131.11,131.09,26.0]
[1744696996042,10.01217255,131.1,131.09,26.0]
[1744696996360,10.01217255,131.1,131.08,26.0]
[1744696996555,10.01217255,131.09,131.08,26.0]
[1744696996947,10.01217255,131.09,131.07,26.0]
[1744696997149,17.63937255,131.11,131.08,26.0]
[1744696997360,17.63937255,131.11,131.09,26.0]
[1744696997866,10.01217255,131.11,131.09,26.0]
[1744696998473,17.63947255,131.11,131.06,10.01217255]
[1744696999272,10.01217255,131.1,131.05,17.70567255]
[1744697000470,17.63987255,131.1,131.05,17.70567255]
[1744697001153,10.01217255,131.09,131.07,26.0]
[1744697001351,10.01217255,131.08,131.07,26.0]
[1744697001559,10.01217255,131.09,131.07,26.0]
[1744697001763,10.01217255,131.11,131.06,43.64197255]
[1744697002570,17.63937255,131.11,131.06,43.64197255]
[1744697004071,10.01217255,131.11,131.06,43.64197255]
[1744697004476,10.01217255,131.12,131.07,10.01217255]
[1744697004678,16.03737255,131.15,131.1,36.01217255]
[1744697005372,23.66247255,131.15,131.1,36.01217255]
[1744697005870,10.01217255,131.14,131.1,26.0]
[1744697006070,10.01217255,131.13,131.1,26.0]
[1744697006578,10.01217255,131.13,131.08,10.01217255]
[1744697007575,10.01217255,131.11,131.07,10.46]
[1744697008063,17.63957255,131.11,131.07,10.46]
[1744697008457,10.01217255,131.11,131.07,28.10157255]
[1744697008662,17.63837255,131.13,131.08,10.01217255]
[1744697009874,10.01217255,131.12,131.08,10.01217255]
[1744697010955,10.01217255,131.12,131.07,17.64147255]
[1744697011380,10.01217255,131.13,131.08,10.01217255]
[1744697011671,17.63857255,131.13,131.08,10.01217255]
[1744697011870,10.01217255,131.12,131.07,17.64147255]
[1744697012773,17.63887255,131.12,131.07,17.64147255]
[1744697012977,10.01217255,131.1,131.05,83.063]
[1744697013165,10.01217255,131.1,131.05,93.07517255]
[1744697013368,7.6267,131.12,131.05,93.07517255]
[1744697013369,10.01217255,131.11,131.06,10.01217255]
[1744697014182,10.01217255,131.11,131.06,17.64217255]
[1744697014365,17.63897255,131.12,131.07,10.01217255]
[1744697015773,17.63837255,131.13,131.07,10.01217255]
[1744697016271,17.63837255,131.13,131.07,17.64157255]
[1744697017455,10.01217255,131.11,131.05,28.72482141]
[1744697017690,10.01217255,131.11,131.05,10.07517255]
[1744697017860,10.01217255,131.1,131.05,0.063]
[1744697018260,17.64037255,131.1,131.05,0.063]
[1744697019781,10.01217255,131.08,131.05,0.063]
[1744697020467,9.1613,131.1,131.05,0.063]
[1744697020670,10.01217255,131.07,131.05,0.063]
[1744697020882,10.01217255,131.08,131.05,0.063]
[1744697021982,17.64157255,131.08,131.05,0.063]
[1744697022695,10.01217255,131.07,131.05,0.063]
[1744697023371,17.64167255,131.07,131.05,0.063]
[1744697024289,7.6295,131.07,131.05,0.063]
[1744697027801,10.01217255,131.07,131.05,0.063]
[1744697029078,7.63,131.06,131.05,0.063]
[1744697031898,17.64217255,131.06,131.05,0.063]
[1744697034202,10.01217255,131.07,131.05,0.063]
[1744697035179,6.4269063,131.07,131.05,0.063]
[1744697036400,6.4269063,131.06,131.05,0.063]
[1744697037201,14.0569063,131.06,131.05,0.063]
[1744697037998,14.19906787,131.06,131.05,0.063]
[1744697038182,14.48339101,131.06,131.05,0.063]
[1744697038387,25.00339101,131.06,131.05,0.063]
[1744697039688,18.29216157,131.06,131.05,0.063]
[1744697039887,7.6297,131.07,131.05,0.063]
[1744697040187,6.4269063,131.06,131.05,0.063]
[1744697040794,7.6297,131.07,131.05,0.063]
[1744697040996,6.4269063,131.06,131.05,0.063]
[1744697041414,14.0569063,131.06,131.05,0.063]
[1744697041902,6.4269063,131.06,131.05,0.063]
[1744697042201,14.0569063,131.06,131.05,0.063]
[1744697043196,17.81792128,131.06,131.05,0.063]
[1744697046711,36.75189328,131.06,131.05,0.063]
[1744697046908,36.89405485,131.06,131.05,0.063]
[1744697047088,0.28432314,131.04,131.02,0.063]
[1744697047288,10.18792128,131.03,131.02,0.063]
[1744697048731,17.81972128,131.03,131.02,0.063]
[1744697049310,17.67755971,131.03,131.02,0.063]
[1744697049506,20.44575971,131.05,131.02,0.063]
[1744697049711,28.07665971,131.05,131.02,0.063]
[1744697049920,10.4,131.05,131.02,0.063]
[1744697050100,17.67605971,131.06,131.02,0.063]
[1744697051401,10.04575971,131.05,131.02,0.063]
[1744697051991,10.04575971,131.04,131.02,0.063]
[1744697053123,17.67695971,131.04,131.02,0.063]
[1744697053331,10.04575971,131.03,131.02,0.063]
[1744697054306,17.81972128,131.03,131.02,0.063]
[1744697055026,36.89585485,131.03,131.02,0.063]
[1744697057428,18.10404442,131.03,131.02,0.063]
[1744697057742,10.4,131.04,131.02,0.063]
[1744697057930,10.04575971,131.06,131.02,0.063]
[1744697058638,17.67595971,131.06,131.02,0.063]
[1744697060123,10.04575971,131.05,131.02,0.063]
[1744697061733,10.04575971,131.06,131.02,0.063]
[1744697062242,10.04575971,131.05,131.02,0.063]
[1744697062943,10.04575971,131.04,131.02,0.063]
[1744697063230,10.04575971,131.05,131.02,0.063]
[1744697064227,17.67655971,131.05,131.02,0.063]
[1744697066710,10.04575971,131.04,131.02,0.063]
[1744697066915,7.6308,131.05,131.02,0.063]
[1744697067116,10.04575971,131.04,131.02,0.063]
[1744697067419,10.04575971,131.03,131.02,0.063]
[1744697067628,10.18792128,131.03,131.02,0.063]
[1744697067831,20.58792128,131.03,131.02,0.063]
[1744697068014,20.87224442,131.03,131.02,0.063]
[1744697068929,28.50404442,131.03,131.02,0.063]
[1744697071444,26.0,131.0,130.99,0.063]
[1744697071647,29.40621642,131.0,130.99,0.063]
[1744697071829,10.04575971,131.0,130.99,0.0001]
[1744697072629,10.18792128,131.0,130.99,0.0001]
[1744697073852,17.82142128,131.0,130.99,0.0001]
[1744697077029,18.10574442,131.0,130.99,0.0001]
[1744697077247,14.49619324,131.0,130.99,0.0001]
[1744697079344,14.2118701,131.0,130.99,0.0001]
[1744697079540,29.4796,131.03,130.99,0.0001]
[1744697079839,6.43620853,131.02,130.99,0.0001]
[1744697080043,6.43620853,131.01,130.99,0.0001]
[1744697080428,6.43620853,131.0,130.99,0.0001]
[1744697080629,14.06970853,131.0,130.99,0.0001]
[1744697081348,17.6868351,131.0,130.99,0.0001]
[1744697083349,17.82899667,131.0,130.99,0.0001]
[1744697084648,7.6335,131.0,130.99,0.0001]
[1744697087047,17.6868351,131.0,130.99,0.0001]
[1744697087226,17.82899667,131.0,130.99,0.0001]
[1744697088648,18.11331981,131.0,130.99,0.0001]
[1744697088834,17.82899667,131.0,130.99,0.0001]
[1744697089038,7.6335,131.0,130.99,0.0001]
[1744697089243,17.6868351,131.0,130.99,0.0001]
[1744697090252,7.77516157,131.01,130.99,0.0001]
[1744697090551,10.0533351,131.0,130.99,0.0001]
[1744697092553,17.6868351,131.0,130.99,0.0001]
[1744697094159,17.82899667,131.0,130.99,0.0001]
[1744697095738,18.11331981,131.0,130.99,0.0001]
[1744697096549,36.76296867,131.0,130.99,0.0001]
[1744697101273,33.14572977,131.0,130.99,0.0001]
[1744697103263,7.77566157,131.0,130.99,0.0001]
[1744697103472,48.6243848,131.04,130.99,0.0001]
[1744697103473,10.38,131.04,130.99,0.0001]
[1744697103780,6.4360962,131.0,130.99,0.0001]
[1744697104345,6.86258091,131.0,130.99,0.0001]
[1744697104858,26.0,131.0,130.99,0.0001]
[1744697105064,6.4360962,131.0,130.99,0.0001]
[1744697105259,26.7114,131.03,130.99,0.0001]
[1744697105458,6.4360962,131.01,130.99,0.0001]
[1744697105761,7.6335,131.0,130.99,0.0001]
[1744697105967,7.6332,131.01,130.99,0.0001]
[1744697106469,7.6318,131.03,130.99,0.0001]
[1744697106682,6.60825777,131.06,131.01,6.4360962]
[1744697106854,0.03,131.06,131.03,6.4360962]
[1744697107053,0.03,131.06,131.02,6.4360962]
[1744697107358,14.0962962,131.06,131.01,6.4360962]
[1744697107557,7.6602,131.06,131.01,6.4360962]
[1744697107762,6.4360962,131.04,130.99,18.0639]
[1744697108071,6.4360962,131.03,130.99,24.4999962]
[1744697109375,6.4360962,131.05,131.0,6.4360962]
[1744697109581,0.03,131.06,131.02,6.4360962]
[1744697109880,7.6602,131.06,131.02,6.4360962]
[1744697110257,0.03,131.06,131.02,6.4360962]
[1744697110577,0.03,131.06,131.05,8.0813962]
[1744697110773,0.03,131.06,131.05,14.1770962]
[1744697111078,0.03,131.06,131.05,32.96890663]
[1744697111261,0.03,131.06,131.05,36.8509295]
[1744697111465,7.6268,131.12,131.06,18.79181043]
[1744697111661,7.6268,131.12,131.05,18.20128064]
[1744697111662,10.03379593,131.11,131.05,7.88316157]
[1744697111867,10.03379593,131.11,131.06,10.03379593]
[1744697112660,7.6268,131.12,131.08,10.03379593]
[1744697112978,10.03379593,131.11,131.05,7.88316157]
[1744697113167,10.03379593,131.11,131.06,10.03379593]
[1744697113368,10.03379593,131.1,131.05,17.77479593]
[1744697113563,7.6283,131.09,131.05,17.77479593]
[1744697114880,7.6283,131.09,131.06,10.03379593]
[1744697116481,10.03379593,131.11,131.06,10.03379593]
[1744697116482,7.6277,131.1,131.06,10.03379593]
[1744697118379,7.6272,131.11,131.07,10.03379593]
[1744697118581,19.0936,131.14,131.1,10.03379593]
[1744697118582,7.626,131.13,131.1,10.03379593]
[1744697119593,7.6554,131.14,131.1,10.03379593]
[1744697119880,7.6554,131.14,131.08,7.6287]
[1744697120060,0.03,131.14,131.13,10.03379593]
[1744697120263,0.03,131.14,131.12,10.03379593]
[1744697120461,0.03,131.14,131.1,7.9819]
[1744697120462,0.03,131.14,131.11,10.03379593]
[1744697120977,0.03,131.14,131.12,10.03379593]
[1744697121331,0.03,131.14,131.13,10.03379593]
[1744697121465,0.03,131.14,131.13,28.82560636]
[1744697122291,0.03,131.14,131.13,10.03379593]
[1744697123871,0.03,131.14,131.13,17.8019575]
[1744697124072,0.03,131.14,131.13,18.08628064]
[1744697124275,0.03,131.14,131.13,18.22844221]
[1744697124473,0.03,131.14,131.13,18.08628064]
[1744697125996,0.03,131.16,131.15,18.933972]
[1744697126199,0.03,131.16,131.15,39.18560636]
[1744697126363,0.03,131.16,131.15,10.36]
[1744697126564,0.03,131.16,131.13,7.585]
[1744697127100,10.06379593,131.16,131.11,20.5359575]
[1744697127396,10.03379593,131.15,131.11,20.5359575]
[1744697127820,10.06379593,131.16,131.11,28.1629575]
[1744697128222,17.68819593,131.16,131.11,28.1629575]
[1744697131920,10.03379593,131.15,131.11,10.36]
[1744697132299,17.68819593,131.16,131.11,28.02079593]
[1744697132829,0.03,131.16,131.12,10.03379593]
[1744697133124,0.03,131.16,131.13,10.03379593]
[1744697135415,0.03,131.16,131.15,28.82560636]
[1744697135723,0.03,131.16,131.15,54.82560636]
[1744697136321,0.03,131.16,131.15,62.45040636]
[1744697136624,0.03,131.18,131.17,0.14216157]
[1744697136799,0.03,131.18,131.17,132.40156386]
[1744697137225,0.03,131.18,131.17,132.685887]
[1744697138322,0.03,131.18,131.17,140.309487]
[1744697139902,0.03,131.18,131.17,130.27569107]
[1744697140097,0.03,131.18,131.17,130.1335295]
[1744697140330,0.03,131.18,131.17,10.1759575]
[1744697140530,0.03,131.18,131.17,20.5559575]
[1744697142428,0.03,131.18,131.17,47.25569107]
[1744697145517,0.03,131.18,131.17,26.69973357]
[1744697145729,0.03,131.18,131.17,47.1135295]
[1744697146236,0.03,131.18,131.17,130.1135295]
[1744697146445,0.03,131.18,131.17,129.97136793]
[1744697148441,0.03,131.18,131.17,130.1135295]
[1744697148650,0.03,131.18,131.17,130.25569107]
[1744697159630,0.03,131.19,131.18,19.07613357]
[1744697159826,0.03,131.19,131.18,39.14372543]
[1744697160356,0.03,131.19,131.18,122.14372543]
[1744697160532,0.03,131.22,131.21,55.1099295]
[1744697160731,0.03,131.22,131.21,139.7457295]
[1744697160933,0.03,131.23,131.22,19.07613357]
[1744697161238,0.03,131.23,131.22,47.1106295]
[1744697162558,0.03,131.26,131.24,45.07613357]
[1744697162758,0.03,131.26,131.25,0.14216157]
[1744697162943,0.03,131.26,131.25,10.1759575]
[1744697163250,0.03,131.26,131.25,17.7949575]
[1744697163457,0.03,131.26,131.25,36.87109107]
[1744697166344,0.03,131.26,131.25,46.904887]
[1744697166668,0.03,131.26,131.25,129.904887]
[1744697167160,0.03,131.26,131.25,119.87109107]
[1744697168045,0.03,131.26,131.25,129.904887]
[1744697170261,0.03,131.3,131.29,26.14216157]
[1744697170459,0.03,131.3,131.28,0.28432314]
[1744697170460,0.03,131.3,131.28,10.36]
[1744697172764,11.63689593,131.3,131.28,10.36]
[1744697172972,17.86649593,131.3,131.26,7.6184]
[1744697173150,17.86649593,131.3,131.26,17.65219593]
[1744697173543,7.8327,131.3,131.26,17.65219593]
[1744697174467,0.03,131.3,131.29,0.14216157]
[1744697174674,0.03,131.3,131.28,10.03379593]
[1744697174853,0.03,131.3,131.27,93.03379593]
[1744697175868,0.03,131.3,131.28,19.07613357]
[1744697176068,0.03,131.3,131.29,10.1759575]
[1744697176463,0.03,131.3,131.29,122.61209107]
[1744697177451,0.0001,131.31,131.3,19.21829514]
[1744697177672,0.0001,131.31,131.3,39.285887]
[1744697178060,0.03,131.32,131.31,0.14216157]
[1744697178255,0.0001,131.32,131.31,122.285887]
[1744697178971,0.0001,131.32,131.31,112.25209107]
[1744697180380,0.0001,131.32,131.31,119.86759107]
[1744697180676,0.0001,131.32,131.31,129.901387]
[1744697181575,15.6443,131.4,131.37,10.03379593]
[1744697181765,8.0338,131.4,131.37,10.03379593]
[1744697182370,15.2322,131.43,131.39,10.03379593]
[1744697182962,15.2322,131.43,131.4,0.14216157]
[1744697182963,7.6235,131.43,131.4,0.14216157]
[1744697183156,10.03379593,131.42,131.38,0.14216157]
[1744697183356,10.03379593,131.42,131.37,10.03379593]
[1744697183568,10.03379593,131.4,131.34,83.0]
[1744697183895,10.03379593,131.4,131.36,0.14216157]
[1744697184073,10.03379593,131.39,131.35,0.14216157]
[1744697184451,10.03379593,131.39,131.35,17.7889575]
[1744697184657,7.6091,131.42,131.37,10.03379593]
[1744697184872,17.64289593,131.42,131.37,10.03379593]
[1744697185378,10.03379593,131.41,131.37,10.1759575]
[1744697185575,17.64289593,131.42,131.37,10.1759575]
[1744697185783,25.26609593,131.43,131.38,10.03379593]
[1744697185953,15.2323,131.43,131.39,10.03379593]
[1744697186561,7.6235,131.43,131.39,10.03379593]
[1744697186766,7.6235,131.43,131.39,17.64469593]
[1744697186966,7.6235,131.43,131.4,10.1759575]
[1744697187676,15.2321,131.43,131.4,10.1759575]
[1744697187893,15.2321,131.43,131.4,0.14216157]
[1744697188177,7.6235,131.43,131.4,10.1759575]
[1744697188382,7.6235,131.43,131.41,10.03379593]
[1744697188889,7.8792,131.46,131.42,10.03379593]
[1744697189055,15.4864,131.46,131.42,10.03379593]
[1744697189258,15.4864,131.46,131.43,0.14216157]
[1744697189479,7.8792,131.46,131.43,0.14216157]
[1744697189654,1.5417,131.46,131.43,10.1759575]
[1744697189861,1.5417,131.46,131.44,10.03379593]
[1744697191768,1.5417,131.46,131.43,7.75056157]
[1744697191769,1.5417,131.46,131.43,10.1759575]
[1744697191971,9.1486,131.46,131.43,0.14216157]
[1744697192173,1.5417,131.46,131.43,10.1759575]
[1744697193166,9.1486,131.46,131.43,10.1759575]
[1744697196386,1.5417,131.46,131.43,10.1759575]
[1744697197287,17.64169593,131.45,131.4,28.82560636]
[1744697197495,17.64169593,131.45,131.4,36.43590636]
[1744697197671,17.64169593,131.45,131.41,10.03379593]
[1744697198769,10.03379593,131.42,131.38,20.37379593]
[1744697198968,10.03379593,131.43,131.38,20.37379593]
[1744697199485,7.6091,131.42,131.38,20.37379593]
[1744697200370,17.64289593,131.42,131.38,20.37379593]
[1744697202586,7.6086,131.43,131.38,20.37379593]
[1744697202789,7.6086,131.43,131.39,10.03379593]
[1744697202990,17.64239593,131.43,131.38,20.37379593]
[1744697204192,10.03379593,131.42,131.38,20.37379593]
[1744697204692,11.59799593,131.4,131.34,18.79181043]
[1744697204994,10.03379593,131.39,131.34,39.18560636]
[1744697205288,11.59799593,131.4,131.35,10.03379593]
[1744697205489,7.6091,131.42,131.37,10.03379593]
[1744697205691,17.64289593,131.42,131.37,10.03379593]
[1744697205878,10.03379593,131.41,131.37,10.03379593]
[1744697206792,17.64399593,131.41,131.37,10.03379593]
[1744697206995,7.6102,131.41,131.37,10.03379593]
[1744697207787,10.03379593,131.4,131.35,10.03379593]
[1744697207987,17.64399593,131.41,131.36,10.03379593]
[1744697208282,17.64309593,131.42,131.37,10.1759575]
[1744697208475,7.6093,131.42,131.38,10.03379593]
[1744697208676,17.64309593,131.42,131.38,10.03379593]
[1744697208996,19.26639593,131.43,131.38,10.03379593]
[1744697209774,10.03379593,131.42,131.38,10.03379593]
[1744697210188,9.2326,131.43,131.37,17.7879575]
[1744697210393,10.03379593,131.42,131.37,10.1759575]
[1744697210773,10.03379593,131.4,131.35,17.7885575]
[1744697210972,10.03379593,131.38,131.34,103.39379593]
[1744697211190,10.03379593,131.38,131.34,10.36]
[1744697211497,16.28549593,131.39,131.34,20.39379593]
[1744697211693,11.57379593,131.37,131.34,10.36]
[1744697212000,10.03379593,131.36,131.31,36.44090636]
[1744697212793,10.03379593,131.35,131.3,20.39379593]
[1744697213102,10.03379593,131.34,131.3,17.9761]
[1744697213276,26.6447,131.36,131.3,10.36]
[1744697213483,10.03379593,131.33,131.3,10.36]
[1744697214274,16.30239593,131.32,131.26,112.07264886]
[1744697214501,10.03379593,131.31,131.26,28.07499593]
[1744697214879,17.64959593,131.31,131.26,28.07499593]
[1744697215389,17.64959593,131.31,131.27,10.03379593]
[1744697215696,6.5699,131.35,131.3,10.03379593]
[1744697215874,6.5699,131.35,131.31,10.03379593]
[1744697216079,6.5699,131.35,131.28,0.14216157]
[1744697216080,16.60369593,131.35,131.3,10.03379593]
[1744697216297,16.60369593,131.35,131.28,0.14216157]
[1744697216298,10.03379593,131.33,131.29,10.03379593]
[1744697216496,10.03379593,131.34,131.29,10.03379593]
[1744697216691,16.60369593,131.35,131.3,10.03379593]
[1744697217086,16.60369593,131.35,131.3,17.64939593]
[1744697217705,24.21689593,131.35,131.3,17.64939593]
[1744697218693,10.03379593,131.34,131.29,17.65039593]
[1744697218878,10.03379593,131.34,131.3,10.03379593]
[1744697219085,24.21689593,131.35,131.3,17.64939593]
[1744697219290,24.21689593,131.35,131.31,10.03379593]
[1744697219291,16.60369593,131.35,131.31,10.03379593]
[1744697219888,14.1832,131.35,131.31,10.03379593]
[1744697220088,24.21699593,131.35,131.3,17.64939593]
[1744697221206,10.03379593,131.34,131.3,10.03379593]
[1744697221416,10.03379593,131.32,131.28,90.617]
[1744697221592,10.03379593,131.32,131.28,10.03379593]
[1744697221797,10.03379593,131.32,131.27,17.65139593]
[1744697222790,17.64889593,131.32,131.27,17.65139593]
[1744697223008,17.64889593,131.32,131.27,10.03379593]
[1744697223404,10.03379593,131.32,131.27,17.65149593]
[1744697223605,10.03379593,131.32,131.28,10.03379593]
[1744697225307,10.03379593,131.32,131.28,17.65089593]
[1744697225498,17.64859593,131.33,131.28,17.65089593]
[1744697225699,17.64859593,131.33,131.28,7.6171]
[1744697226210,10.03379593,131.32,131.27,10.03379593]
[1744697226510,10.03379593,131.31,131.26,20.45679593]
[1744697226814,10.03379593,131.28,131.26,0.063]
[1744697226990,10.03379593,131.29,131.26,0.063]
[1744697227390,7.6173,131.28,131.26,0.063]
[1744697227987,17.65109593,131.28,131.26,0.063]
[1744697228289,10.03379593,131.27,131.26,0.063]
[1744697229621,32.4919,131.25,131.24,0.063]
[1744697229911,42.52569593,131.25,131.24,0.063]
[1744697230090,42.6678575,131.25,131.24,0.063]
[1744697231625,50.2868575,131.25,131.24,0.063]
[1744697232127,0.42648471,131.24,131.23,0.063]
[1744697232291,10.46028064,131.24,131.23,0.063]
[1744697233717,18.07988064,131.24,131.23,0.063]
[1744697234317,17.65339593,131.24,131.23,0.063]
[1744697235017,11.59909593,131.27,131.23,0.063]
[1744697235194,7.6163,131.3,131.26,10.03379593]
[1744697235391,76.20278367,131.34,131.29,10.03379593]
[1744697235623,76.20278367,131.34,131.24,10.64432314]
[1744697235624,10.03379593,131.31,131.27,10.03379593]
[1744697235800,17.64949593,131.31,131.26,17.65219593]
[1744697236197,17.64949593,131.31,131.26,10.03379593]
[1744697237013,10.03379593,131.3,131.26,10.03379593]
[1744697237198,16.01109704,131.3,131.26,16.01109704]
[1744697237398,23.62679704,131.31,131.26,16.01109704]
[1744697237715,16.01109704,131.3,131.25,16.15325861]
[1744697237891,7.6167,131.29,131.25,16.01109704]
[1744697238929,23.62779704,131.29,131.24,26.37109704]
[1744697239100,23.62779704,131.29,131.24,33.99069704]
[1744697239299,7.6167,131.29,131.25,16.01109704]
[1744697240222,16.01109704,131.33,131.28,16.01109704]
[1744697240427,7.6144,131.33,131.29,16.01109704]
[1744697241719,27.97459704,131.35,131.3,16.01109704]
[1744697242031,6.541,131.36,131.32,16.01109704]
[1744697242200,16.01109704,131.37,131.32,16.01109704]
[1744697242400,7.6122,131.37,131.33,16.01109704]
[1744697242626,23.62329704,131.37,131.32,16.01109704]
[1744697242821,16.01109704,131.36,131.31,16.01109704]
[1744697243316,16.01109704,131.35,131.3,16.01109704]
[1744697243522,23.62519704,131.34,131.29,26.37109704]
[1744697243725,23.62519704,131.34,131.29,16.01109704]
[1744697245007,42.01109704,131.36,131.31,16.01109704]
[1744697245529,23.62429704,131.35,131.3,16.01109704]
[1744697246714,16.01109704,131.34,131.29,16.01109704]
[1744697246911,16.01109704,131.33,131.28,16.01109704]
[1744697247128,16.01109704,131.34,131.29,16.01109704]
[1744697247736,23.62489704,131.34,131.29,23.62759704]
[1744697247920,7.6138,131.34,131.3,16.01109704]
[1744697248430,23.62489704,131.34,131.29,16.01109704]
[1744697249130,23.62489704,131.34,131.29,23.62759704]
[1744697250231,49.62429704,131.36,131.31,16.01109704]
[1744697250927,33.6132,131.36,131.31,16.01109704]
[1744697251312,23.62339704,131.37,131.32,16.01109704]
[1744697252033,17.66499704,131.38,131.33,16.01109704]
[1744697252220,0.03,131.38,131.34,16.01109704]
[1744697252421,16.04109704,131.38,131.33,16.01109704]
[1744697253547,16.04109704,131.38,131.33,23.62539704]
[1744697254739,23.65269704,131.38,131.33,16.01109704]
[1744697255118,23.65269704,131.38,131.33,23.62539704]
[1744697255339,16.04109704,131.38,131.33,23.62539704]
[1744697255547,0.03,131.38,131.34,16.01109704]
[1744697255720,0.03,131.38,131.35,16.01109704]
[1744697256348,7.6415,131.38,131.34,16.01109704]
[1744697256517,7.6415,131.38,131.33,16.01109704]
[1744697256719,23.65259704,131.38,131.33,16.01109704]
[1744697257847,23.65259704,131.38,131.33,23.62529704]
[1744697259143,10.02426148,131.38,131.33,17.60846148]
[1744697260244,10.02426148,131.38,131.33,9.99426148]
[1744697260542,9.99426148,131.37,131.33,9.99426148]
[1744697261332,10.02426148,131.38,131.33,17.60856148]
[1744697263848,17.60626148,131.37,131.33,9.99426148]
[1744697265352,7.612,131.37,131.33,9.99426148]
[1744697265746,17.63596148,131.38,131.33,17.60866148]
[1744697267330,0.03,131.38,131.34,9.99426148]
[1744697267540,0.03,131.38,131.36,9.99426148]
[1744697270966,0.03,131.38,131.35,9.99426148]
[1744697271136,0.03,131.38,131.34,7.89772314]
[1744697271137,0.03,131.38,131.34,17.89198462]
[1744697272143,0.03,131.38,131.35,9.99426148]
[1744697272447,0.03,131.38,131.37,10.13642305]
[1744697274658,0.03,131.38,131.37,9.99426148]
[1744697274976,10.02426148,131.38,131.32,93.13642305]
[1744697275151,10.02426148,131.38,131.33,9.99426148]
[1744697275338,10.02426148,131.38,131.34,9.99426148]
[1744697276563,17.63596148,131.38,131.34,9.99426148]
[1744697276940,7.6417,131.38,131.34,9.99426148]
[1744697279064,17.63596148,131.38,131.34,9.99426148]
[1744697279562,17.63596148,131.38,131.33,9.99426148]
[1744697280163,17.63596148,131.38,131.32,0.14216157]
[1744697280350,9.99426148,131.36,131.31,10.36]
[1744697280551,9.99426148,131.35,131.31,10.36]
[1744697281862,7.6138,131.34,131.3,0.14216157]
[1744697282152,7.6138,131.34,131.28,92.99426148]
[1744697282153,9.99426148,131.33,131.28,92.99426148]
[1744697282358,9.99426148,131.3,131.23,84.6308]
[1744697282566,9.99426148,131.3,131.25,9.99426148]
[1744697282739,9.99426148,131.29,131.24,28.78607191]
[1744697283267,9.99426148,131.3,131.25,9.99426148]
[1744697283440,17.61086148,131.3,131.25,9.99426148]
[1744697283759,17.61086148,131.3,131.25,17.61326148]
[1744697284465,7.6166,131.3,131.26,9.99426148]
[1744697284846,11.61066148,131.32,131.27,10.13642305]
[1744697285656,1.6164,131.32,131.27,10.13642305]
[1744697285840,48.74602314,131.37,131.3,9.99426148]
[1744697285841,1.5401,131.35,131.3,9.99426148]
[1744697286166,11.53436148,131.35,131.31,9.99426148]
[1744697286346,1.5401,131.35,131.32,9.99426148]
[1744697286750,7.6122,131.37,131.33,9.99426148]
[1744697288241,17.60646148,131.37,131.32,9.99426148]
[1744697288441,9.99426148,131.35,131.31,9.99426148]
[1744697288745,9.99426148,131.35,131.3,10.13642305]
[1744697289554,7.6138,131.34,131.3,10.13642305]
[1744697289952,9.99426148,131.33,131.28,103.53642305]
[1744697290158,11.63336148,131.33,131.28,103.53642305]
[1744697290740,29.3929,131.36,131.31,0.14216157]
[1744697290741,9.99426148,131.35,131.31,0.14216157]
[1744697290945,7.9015,131.37,131.34,9.99426148]
[1744697291474,7.9015,131.37,131.33,9.99426148]
[1744697291649,15.5137,131.37,131.33,9.99426148]
[1744697294080,25.50796148,131.37,131.33,9.99426148]
[1744697294877,9.99426148,131.35,131.3,92.99426148]
[1744697295052,34.5439,131.37,131.31,9.99426148]
[1744697295246,9.99426148,131.36,131.31,9.99426148]
[1744697295953,9.99426148,131.34,131.29,18.79181043]